fUST/lending_fUST_20250203
["ID","MTS","AMOUNT","RATE_DAILY","PERIOD"]
[351411665,1738558248330,-498.99625122,0.00016712,2]
[351411666,1738558248348,-3402.68218434,0.00016712,2]
[351411667,1738558248358,-735.86,0.00016712,2]
[351411668,1738558248368,-6797.48,0.00016849,2]
[351411669,1738558248378,-735.86,0.00016849,2]
[351411670,1738558248388,-6797.48,0.00016986,2]
[351411671,1738558248398,-735.86,0.00016986,2]
[351411672,1738558248408,-6797.48,0.00017123,2]
[351411673,1738558248419,-735.86,0.00017123,2]
[351411674,1738558248571,-6797.48,0.0001726,2]
[351411675,1738558248582,-735.86,0.0001726,2]
[351411676,1738558248591,-6797.48,0.00017397,2]
[351411677,1738558248601,-735.86,0.00017397,2]
[351411678,1738558248610,-6797.48,0.00017534,2]
[351411679,1738558248620,-735.86,0.00017534,2]
[351411680,1738558248629,-3564.12596159,0.00017671,2]
[351411681,1738558248810,-500.0,0.00016438,2]
[351411682,1738558248819,-103.53567869,0.00016575,2]
[351411683,1738558248838,-396.46432131,0.00016575,2]
[351411684,1738558248848,-78.77214863,0.00016712,2]
[351411685,1738558250467,-712.09,0.00016438,2]
[351411686,1738558250476,-712.09,0.00016575,2]
[351411687,1738558250486,-421.22785137,0.00016712,2]
[351411688,1738558250496,-712.09,0.00016712,2]
[351411689,1738558250505,-500.0,0.00016849,2]
[351411690,1738558250515,-712.09,0.00016849,2]
[351411691,1738558250525,-500.0,0.00016986,2]
[351411692,1738558250535,-712.09,0.00016986,2]
[351411693,1738558250545,-500.0,0.00017123,2]
[351411694,1738558250555,-500.0,0.0001726,2]
[351411695,1738558250565,-500.0,0.00017397,2]
[351411696,1738558250575,-500.0,0.00017534,2]
[351411697,1738558250586,-175.11055212,0.00017571,2]
[351411698,1738558250595,-396.0,0.00017581,2]
[351411699,1738558250605,-175.11055212,0.00017653,2]
[351411700,1738558250615,-3233.35403841,0.00017671,2]
[351411701,1738558250625,-735.86,0.00017671,2]
[351411702,1738558250636,-500.0,0.00017671,2]
[351411703,1738558250646,-823.04434729,0.00017776,2]
[351411704,1738558250656,-1438.23016969,0.00017808,2]
[351411742,1738558429691,400.0,0.00013973,2]
[351411743,1738558623090,3942.97436884,0.00015011,2]
[351411744,1738558949771,3004.9188683,0.00015011,2]
[351411746,1738559133634,187.940267,0.00013699,2]
[351411748,1738559241111,-213.1901365,0.00015093,2]
[351411749,1738559241132,-260.7958689,0.00015093,2]
[351411750,1738559241156,-250.0,0.00015093,2]
[351411751,1738559241179,-2141.6173041,0.00015257,2]
[351411752,1738559241201,-300.0,0.00015452,2]
[351411753,1738559241224,-24900.0,0.00015453,2]
[351411754,1738559241246,-500.0,0.00015753,2]
[351411755,1738559241441,-5405.967778,0.000164,2]
[351411756,1738559241469,-500.0,0.00016438,2]
[351411757,1738559241492,-503.07571443,0.00016438,2]
[351411758,1738559241515,-500.0,0.00016438,2]
[351411759,1738559241536,-500.0,0.00016438,2]
[351411760,1738559241558,-400.40049492,0.00016438,2]
[351411761,1738559241579,-500.0,0.00016438,2]
[351411762,1738559241604,-500.0,0.00016438,2]
[351411763,1738559241625,-500.0,0.00016438,2]
[351411764,1738559241646,-1000.0,0.00016438,2]
[351411765,1738559241667,-500.0,0.00016438,2]
[351411766,1738559241689,-500.0,0.00016438,2]
[351411767,1738559241713,-500.0,0.00016438,2]
[351411768,1738559241734,-500.0,0.00016438,2]
[351411769,1738559241757,-500.0,0.00016438,2]
[351411770,1738559241781,-500.0,0.00016438,2]
[351411771,1738559241805,-500.0,0.00016438,2]
[351411772,1738559241828,-500.0,0.00016438,2]
[351411773,1738559241851,-500.0,0.00016438,2]
[351411774,1738559241874,-500.0,0.00016438,2]
[351411775,1738559241895,-512.91707183,0.00016438,2]
[351411776,1738559241918,-600.28446814,0.00016438,2]
[351411777,1738559241941,-500.0,0.00016438,2]
[351411778,1738559241968,-500.0,0.00016438,2]
[351411779,1738559241996,-500.0,0.00016438,2]
[351411780,1738559242020,-585.44,0.00016438,2]
[351411781,1738559242044,-3225.72,0.00016438,2]
[351411782,1738559242069,-500.0,0.00016438,2]
[351411783,1738559242091,-500.0,0.00016438,2]
[351411784,1738559242114,-500.0,0.00016438,2]
[351411785,1738559242139,-500.0,0.00016438,2]
[351411786,1738559242165,-580.26,0.00016438,2]
[351411787,1738559242187,-500.0,0.00016438,2]
[351411788,1738559242212,-534.75477925,0.00016438,2]
[351411789,1738559242234,-500.0,0.00016438,2]
[351411790,1738559242256,-500.0,0.00016438,2]
[351411791,1738559242278,-519.1434309,0.00016438,2]
[351411792,1738559242300,-288.16068165,0.00016438,2]
[351411793,1738559242322,-500.0,0.00016438,2]
[351411794,1738559242345,-500.0,0.00016438,2]
[351411795,1738559242367,-500.0,0.00016438,2]
[351411796,1738559242390,-500.0,0.00016438,2]
[351411797,1738559242414,-546.69,0.00016438,2]
[351411798,1738559242438,-1411.54,0.00016438,2]
[351411799,1738559242463,-337.76,0.00016438,2]
[351411800,1738559242488,-3515.07,0.00016438,2]
[351411801,1738559242510,-500.0,0.00016438,2]
[351411802,1738559242532,-500.0,0.00016438,2]
[351411803,1738559242555,-500.0,0.00016438,2]
[351411804,1738559242578,-543.35,0.00016438,2]
[351411805,1738559242601,-687.7,0.00016438,2]
[351411806,1738559242623,-500.0,0.00016438,2]
[351411807,1738559242646,-1653.91,0.00016438,2]
[351411808,1738559242672,-2170.46,0.00016438,2]
[351411809,1738559242695,-500.0,0.00016438,2]
[351411810,1738559242722,-500.0,0.00016438,2]
[351411811,1738559242751,-648.9689507,0.00016438,7]
[351411812,1738559242776,-1612.03,0.00016438,2]
[351411813,1738559242801,-500.0,0.00016438,2]
[351411814,1738559242824,-500.0,0.00016438,2]
[351411815,1738559242848,-633.83,0.00016438,2]
[351411816,1738559242870,-500.0,0.00016438,2]
[351411817,1738559242893,-639.58,0.00016438,2]
[351411818,1738559242917,-854.5,0.00016438,2]
[351411819,1738559242940,-500.0,0.00016438,2]
[351411820,1738559242967,-500.0,0.00016438,2]
[351411821,1738559242990,-1137.16,0.00016438,2]
[351411822,1738559243013,-500.0,0.00016438,2]
[351411823,1738559243037,-2705.41,0.00016438,2]
[351411824,1738559243061,-500.0,0.00016438,2]
[351411825,1738559243086,-500.0,0.00016438,2]
[351411826,1738559243108,-1365.42,0.00016438,2]
[351411827,1738559243130,-500.0,0.00016438,2]
[351411828,1738559243154,-586.94,0.00016438,2]
[351411829,1738559243175,-563.74,0.00016438,2]
[351411830,1738559243198,-1812.62,0.00016438,2]
[351411831,1738559243223,-155.07418814,0.00016438,2]
[351411832,1738559243245,-518.65607259,0.00016438,2]
[351411833,1738559243267,-520.73,0.00016438,2]
[351411834,1738559243289,-669.38,0.00016438,2]
[351411835,1738559243312,-500.0,0.00016438,2]
[351411836,1738559243336,-500.0,0.00016438,2]
[351411837,1738559243359,-18037.35,0.00016574,2]
[351411838,1738559243383,-951.24,0.00016574,2]
[351411839,1738559243408,-6465.93,0.00016574,2]
[351411840,1738559243432,-500.0,0.00016574,2]
[351411841,1738559243456,-848.21,0.00016574,2]
[351411842,1738559243484,-4852.41,0.00016574,2]
[351411843,1738559243507,-500.0,0.00016574,2]
[351411844,1738559243528,-536.63971104,0.00016575,2]
[351411845,1738559243551,-500.0,0.00016575,2]
[351411846,1738559243572,-573.6034831,0.00016575,2]
[351411847,1738559243594,-616.01,0.00016575,2]
[351411848,1738559243615,-511.07060902,0.00016575,2]
[351411849,1738559243636,-995.24951401,0.00016575,2]
[351411850,1738559243657,-500.0,0.00016575,2]
[351411851,1738559243679,-500.0,0.00016575,2]
[351411852,1738559243700,-500.0,0.00016575,2]
[351411853,1738559243726,-500.0,0.00016575,2]
[351411854,1738559243756,-500.0,0.00016575,2]
[351411855,1738559243777,-500.0,0.00016575,2]
[351411856,1738559243797,-500.0,0.00016575,2]
[351411857,1738559243818,-585.44,0.00016575,2]
[351411858,1738559243840,-3225.72,0.00016575,2]
[351411859,1738559243862,-300.2174046,0.00016575,2]
[351411860,1738559243883,-500.0,0.00016575,2]
[351411861,1738559243905,-580.26,0.00016575,2]
[351411862,1738559243927,-578.24434726,0.00016575,2]
[351411863,1738559243948,-500.0,0.00016575,2]
[351411864,1738559243974,-500.0,0.00016575,2]
[351411865,1738559243997,-500.0,0.00016575,2]
[351411866,1738559244021,-500.0,0.00016575,2]
[351411867,1738559244044,-546.69,0.00016575,2]
[351411868,1738559244069,-1411.54,0.00016575,2]
[351411869,1738559244095,-3515.07,0.00016575,2]
[351411870,1738559244117,-500.0,0.00016575,2]
[351411871,1738559244139,-500.0,0.00016575,2]
[351411872,1738559244160,-500.0,0.00016575,2]
[351411873,1738559244182,-543.35,0.00016575,2]
[351411874,1738559244204,-687.7,0.00016575,2]
[351411875,1738559244229,-500.0,0.00016575,2]
[351411876,1738559244251,-1653.91,0.00016575,2]
[351411877,1738559244272,-2170.46,0.00016575,2]
[351411878,1738559244294,-500.0,0.00016575,2]
[351411879,1738559244316,-500.0,0.00016575,2]
[351411880,1738559244341,-1612.03,0.00016575,2]
[351411881,1738559244367,-500.0,0.00016575,2]
[351411882,1738559244389,-500.0,0.00016575,2]
[351411883,1738559244411,-633.83,0.00016575,2]
[351411884,1738559244434,-500.0,0.00016575,2]
[351411885,1738559244459,-854.5,0.00016575,2]
[351411886,1738559244484,-500.0,0.00016575,2]
[351411887,1738559244506,-500.0,0.00016575,2]
[351411888,1738559244531,-1137.16,0.00016575,2]
[351411889,1738559244552,-500.0,0.00016575,2]
[351411890,1738559244574,-2705.41,0.00016575,2]
[351411891,1738559244597,-500.0,0.00016575,2]
[351411892,1738559244619,-500.0,0.00016575,2]
[351411893,1738559244643,-1365.42,0.00016575,2]
[351411894,1738559244664,-500.0,0.00016575,2]
[351411895,1738559244687,-586.94,0.00016575,2]
[351411896,1738559244708,-563.74,0.00016575,2]
[351411897,1738559244735,-1812.62,0.00016575,2]
[351411898,1738559244757,-520.73,0.00016575,2]
[351411899,1738559244779,-669.38,0.00016575,2]
[351411900,1738559244801,-500.0,0.00016575,2]
[351411901,1738559244823,-500.0,0.00016575,2]
[351411902,1738559244844,-151.0,0.000167,2]
[351411903,1738559244866,-18037.35,0.00016711,2]
[351411904,1738559244890,-951.24,0.00016711,2]
[351411905,1738559244913,-6465.93,0.00016711,2]
[351411906,1738559244936,-500.0,0.00016711,2]
[351411907,1738559244960,-848.21,0.00016711,2]
[351411908,1738559244986,-4852.41,0.00016711,2]
[351411909,1738559245009,-500.0,0.00016711,2]
[351411910,1738559245031,-500.0,0.00016712,2]
[351411911,1738559245052,-500.0,0.00016712,2]
[351411912,1738559245081,-500.0,0.00016712,2]
[351411913,1738559245103,-500.0,0.00016712,2]
[351411914,1738559245124,-500.0,0.00016712,2]
[351411915,1738559245147,-500.0,0.00016712,2]
[351411916,1738559245170,-500.0,0.00016712,2]
[351411917,1738559245193,-500.0,0.00016712,2]
[351411918,1738559245219,-585.44,0.00016712,2]
[351411919,1738559245244,-3225.72,0.00016712,2]
[351411920,1738559245265,-500.0,0.00016712,2]
[351411921,1738559245288,-580.26,0.00016712,2]
[351411922,1738559245310,-500.0,0.00016712,2]
[351411923,1738559245333,-500.0,0.00016712,2]
[351411924,1738559245357,-500.0,0.00016712,2]
[351411925,1738559245381,-199.07876879,0.00016712,2]
[351411926,1738559245404,-546.69,0.00016712,2]
[351411927,1738559245428,-1411.54,0.00016712,2]
[351411928,1738559245452,-3515.07,0.00016712,2]
[351411929,1738559245476,-500.0,0.00016712,2]
[351411930,1738559245499,-500.0,0.00016712,2]
[351411931,1738559245658,-500.0,0.00016712,2]
[351411932,1738559245681,-543.35,0.00016712,2]
[351411933,1738559245704,-687.7,0.00016712,2]
[351411934,1738559245727,-500.0,0.00016712,2]
[351411935,1738559245751,-1653.91,0.00016712,2]
[351411936,1738559245775,-2170.46,0.00016712,2]
[351411937,1738559245799,-500.0,0.00016712,2]
[351411938,1738559245822,-500.0,0.00016712,2]
[351411939,1738559245845,-1612.03,0.00016712,2]
[351411940,1738559245868,-500.0,0.00016712,2]
[351411941,1738559245890,-349.10131448,0.00016712,2]
[351411942,1738559245912,-633.83,0.00016712,2]
[351411943,1738559245934,-500.0,0.00016712,2]
[351411944,1738559245956,-854.5,0.00016712,2]
[351411945,1738559245981,-500.0,0.00016712,2]
[351411946,1738559246002,-500.0,0.00016712,2]
[351411947,1738559246025,-1137.16,0.00016712,2]
[351411948,1738559246045,-492.90446542,0.00016712,2]
[351411949,1738559246068,-2705.41,0.00016712,2]
[351411950,1738559246090,-500.0,0.00016712,2]
[351411951,1738559246111,-500.0,0.00016712,2]
[351411952,1738559246134,-1365.42,0.00016712,2]
[351411953,1738559246156,-500.0,0.00016712,2]
[351411954,1738559246178,-586.94,0.00016712,2]
[351411955,1738559246199,-563.74,0.00016712,2]
[351411956,1738559246224,-1812.62,0.00016712,2]
[351411957,1738559246245,-520.73,0.00016712,2]
[351411958,1738559246266,-669.38,0.00016712,2]
[351411959,1738559246288,-500.0,0.00016712,2]
[351411960,1738559246310,-500.0,0.00016712,2]
[351411961,1738559246337,-151.0,0.000168,2]
[351411962,1738559246359,-500.0,0.00016848,2]
[351411963,1738559246380,-500.0,0.00016848,2]
[351411964,1738559246401,-902.39,0.00016848,2]
[351411965,1738559246423,-500.0,0.00016848,2]
[351411966,1738559246444,-500.0,0.00016848,2]
[351411967,1738559246469,-500.0,0.00016848,2]
[351411968,1738559246492,-500.0,0.00016848,2]
[351411969,1738559246515,-500.0,0.00016848,2]
[351411970,1738559246537,-500.0,0.00016848,2]
[351411971,1738559246559,-500.0,0.00016848,2]
[351411972,1738559246581,-500.0,0.00016848,2]
[351411973,1738559246602,-500.0,0.00016848,2]
[351411974,1738559246624,-500.0,0.00016848,2]
[351411975,1738559246646,-18037.35,0.00016848,2]
[351411976,1738559246668,-500.0,0.00016848,2]
[351411977,1738559246690,-951.24,0.00016848,2]
[351411978,1738559246713,-6465.93,0.00016848,2]
[351411979,1738559246736,-500.0,0.00016848,2]
[351411980,1738559246759,-623.94,0.00016848,2]
[351411981,1738559246782,-500.0,0.00016848,2]
[351411982,1738559246803,-848.21,0.00016848,2]
[351411983,1738559246825,-624.75,0.00016848,2]
[351411984,1738559246848,-506.09264111,0.00016848,2]
[351411985,1738559246871,-4852.41,0.00016848,2]
[351411986,1738559246893,-500.0,0.00016848,2]
[351411987,1738559246914,-500.0,0.00016849,2]
[351411988,1738559246935,-500.0,0.00016849,2]
[351411989,1738559246956,-500.0,0.00016849,2]
[351411990,1738559246981,-500.0,0.00016849,2]
[351411991,1738559247004,-500.0,0.00016849,2]
[351411992,1738559247026,-500.0,0.00016849,2]
[351411993,1738559247047,-500.0,0.00016849,2]
[351411994,1738559247068,-500.0,0.00016849,2]
[351411995,1738559247093,-585.44,0.00016849,2]
[351411996,1738559247115,-3225.72,0.00016849,2]
[351411997,1738559247137,-500.0,0.00016849,2]
[351411998,1738559247161,-580.26,0.00016849,2]
[351411999,1738559247182,-500.0,0.00016849,2]
[351412000,1738559247206,-500.0,0.00016849,2]
[351412001,1738559247236,-500.0,0.00016849,2]
[351412002,1738559247261,-546.69,0.00016849,2]
[351412003,1738559247286,-1411.54,0.00016849,2]
[351412004,1738559247311,-3515.07,0.00016849,2]
[351412005,1738559247335,-500.0,0.00016849,2]
[351412006,1738559247357,-500.0,0.00016849,2]
[351412007,1738559247380,-500.0,0.00016849,2]
[351412008,1738559247403,-543.35,0.00016849,2]
[351412009,1738559247427,-687.7,0.00016849,2]
[351412010,1738559247449,-500.0,0.00016849,2]
[351412011,1738559247477,-1653.91,0.00016849,2]
[351412012,1738559247500,-2170.46,0.00016849,2]
[351412013,1738559247523,-500.0,0.00016849,2]
[351412014,1738559247546,-500.0,0.00016849,2]
[351412015,1738559247569,-1612.03,0.00016849,2]
[351412016,1738559247592,-500.0,0.00016849,2]
[351412017,1738559247614,-633.83,0.00016849,2]
[351412018,1738559247640,-500.0,0.00016849,2]
[351412019,1738559247664,-854.5,0.00016849,2]
[351412020,1738559247687,-500.0,0.00016849,2]
[351412021,1738559247716,-500.0,0.00016849,2]
[351412022,1738559247741,-1137.16,0.00016849,2]
[351412023,1738559247769,-2705.41,0.00016849,2]
[351412024,1738559247792,-500.0,0.00016849,2]
[351412025,1738559247815,-500.0,0.00016849,2]
[351412026,1738559247838,-1365.42,0.00016849,2]
[351412027,1738559247860,-500.0,0.00016849,2]
[351412028,1738559247883,-586.94,0.00016849,2]
[351412029,1738559247904,-563.74,0.00016849,2]
[351412030,1738559247927,-1812.62,0.00016849,2]
[351412031,1738559247948,-520.73,0.00016849,2]
[351412032,1738559247974,-669.38,0.00016849,2]
[351412033,1738559247996,-500.0,0.00016849,2]
[351412034,1738559248019,-500.0,0.00016849,2]
[351412035,1738559248042,-267.1667773,0.000169,2]
[351412036,1738559248065,-420.0,0.00016903,2]
[351412037,1738559248093,-267.16677718,0.00016934,2]
[351412038,1738559248119,-267.16677718,0.00016969,2]
[351412039,1738559248143,-500.0,0.00016985,2]
[351412040,1738559248166,-500.0,0.00016985,2]
[351412041,1738559248187,-902.39,0.00016985,2]
[351412042,1738559248208,-500.0,0.00016985,2]
[351412043,1738559248232,-500.0,0.00016985,2]
[351412044,1738559248253,-500.0,0.00016985,2]
[351412045,1738559248274,-500.0,0.00016985,2]
[351412046,1738559248296,-500.0,0.00016985,2]
[351412047,1738559248318,-500.0,0.00016985,2]
[351412048,1738559248339,-513.55891995,0.00016985,2]
[351412049,1738559248361,-500.0,0.00016985,2]
[351412050,1738559248382,-500.0,0.00016985,2]
[351412051,1738559248404,-500.0,0.00016985,2]
[351412052,1738559248426,-18037.35,0.00016985,2]
[351412053,1738559248446,-500.0,0.00016985,2]
[351412054,1738559248471,-951.24,0.00016985,2]
[351412055,1738559248494,-6465.93,0.00016985,2]
[351412056,1738559248516,-623.94,0.00016985,2]
[351412057,1738559248539,-500.0,0.00016985,2]
[351412058,1738559248561,-848.21,0.00016985,2]
[351412059,1738559248583,-624.75,0.00016985,2]
[351412060,1738559248608,-4852.41,0.00016985,2]
[351412061,1738559248630,-500.0,0.00016985,2]
[351412062,1738559248651,-500.0,0.00016986,2]
[351412063,1738559248672,-257.17410142,0.00016986,2]
[351412064,1738559248694,-500.0,0.00016986,2]
[351412065,1738559248718,-500.0,0.00016986,2]
[351412066,1738559248740,-500.0,0.00016986,2]
[351412067,1738559248761,-500.0,0.00016986,2]
[351412068,1738559248783,-500.0,0.00016986,2]
[351412069,1738559248806,-500.0,0.00016986,2]
[351412070,1738559248829,-585.44,0.00016986,2]
[351412071,1738559248852,-3225.72,0.00016986,2]
[351412072,1738559248873,-336.63451079,0.00016986,2]
[351412073,1738559248895,-580.26,0.00016986,2]
[351412074,1738559248916,-500.0,0.00016986,2]
[351412075,1738559248938,-500.0,0.00016986,2]
[351412076,1738559248960,-500.0,0.00016986,2]
[351412077,1738559248986,-546.69,0.00016986,2]
[351412078,1738559249009,-1411.54,0.00016986,2]
[351412079,1738559249032,-3515.07,0.00016986,2]
[351412080,1738559249054,-500.0,0.00016986,2]
[351412081,1738559249077,-563.45566821,0.00016986,2]
[351412082,1738559249102,-500.0,0.00016986,2]
[351412083,1738559249125,-543.35,0.00016986,2]
[351412084,1738559249149,-687.7,0.00016986,2]
[351412085,1738559249171,-500.0,0.00016986,2]
[351412086,1738559249198,-1653.91,0.00016986,2]
[351412087,1738559249225,-2170.46,0.00016986,2]
[351412088,1738559249249,-500.0,0.00016986,2]
[351412089,1738559249272,-500.0,0.00016986,2]
[351412090,1738559249296,-1612.03,0.00016986,2]
[351412091,1738559249319,-500.0,0.00016986,2]
[351412092,1738559249343,-633.83,0.00016986,2]
[351412093,1738559249366,-500.0,0.00016986,2]
[351412094,1738559249389,-854.5,0.00016986,2]
[351412095,1738559249412,-500.0,0.00016986,2]
[351412096,1738559249436,-1137.16,0.00016986,2]
[351412097,1738559249461,-2705.41,0.00016986,2]
[351412098,1738559249493,-500.0,0.00016986,2]
[351412099,1738559249518,-500.0,0.00016986,2]
[351412100,1738559249541,-1365.42,0.00016986,2]
[351412101,1738559249563,-334.01207083,0.00016986,2]
[351412102,1738559249587,-586.94,0.00016986,2]
[351412103,1738559249610,-563.74,0.00016986,2]
[351412104,1738559249633,-1812.62,0.00016986,2]
[351412105,1738559249796,-520.73,0.00016986,2]
[351412106,1738559249821,-669.38,0.00016986,2]
[351412107,1738559249843,-500.0,0.00016986,2]
[351412108,1738559249867,-500.0,0.00016986,2]
[351412109,1738559249889,-151.0,0.00017,2]
[351412110,1738559249910,-151.0,0.00017,2]
[351412111,1738559249932,-267.16677718,0.00017003,2]
[351412112,1738559249955,-267.16677718,0.00017038,2]
[351412113,1738559249984,-267.16677718,0.00017072,2]
[351412114,1738559250005,-184.241,0.000171,2]
[351412115,1738559250028,-151.0,0.000171,2]
[351412116,1738559250050,-151.0,0.000171,2]
[351412117,1738559250074,-267.16677718,0.00017107,2]
[351412118,1738559250097,-160.0,0.0001712,3]
[351412119,1738559250120,-500.0,0.00017122,2]
[351412120,1738559250142,-500.0,0.00017122,2]
[351412121,1738559250165,-902.39,0.00017122,2]
[351412122,1738559250186,-500.0,0.00017122,2]
[351412123,1738559250207,-500.0,0.00017122,2]
[351412124,1738559250234,-500.0,0.00017122,2]
[351412125,1738559250259,-500.0,0.00017122,2]
[351412126,1738559250282,-500.0,0.00017122,2]
[351412127,1738559250304,-367.5427801,0.00017122,2]
[351412128,1738559250327,-211.35654033,0.00017122,2]
[351412129,1738559250350,-500.0,0.00017122,2]
[351412130,1738559250373,-500.0,0.00017122,2]
[351412131,1738559250397,-18037.35,0.00017122,2]
[351412132,1738559250420,-500.0,0.00017122,2]
[351412133,1738559250444,-951.24,0.00017122,2]
[351412134,1738559250473,-6465.93,0.00017122,2]
[351412135,1738559250495,-623.94,0.00017122,2]
[351412136,1738559250519,-500.0,0.00017122,2]
[351412137,1738559250542,-848.21,0.00017122,2]
[351412138,1738559250566,-624.75,0.00017122,2]
[351412139,1738559250589,-482.51231035,0.00017122,2]
[351412140,1738559250613,-4852.41,0.00017122,2]
[351412141,1738559250637,-500.0,0.00017122,2]
[351412142,1738559250660,-500.0,0.00017123,2]
[351412143,1738559250682,-500.0,0.00017123,2]
[351412144,1738559250704,-500.0,0.00017123,2]
[351412145,1738559250730,-500.0,0.00017123,2]
[351412146,1738559250753,-500.0,0.00017123,2]
[351412147,1738559250776,-500.0,0.00017123,2]
[351412148,1738559250799,-400.60640714,0.00017123,2]
[351412149,1738559250821,-585.44,0.00017123,2]
[351412150,1738559250844,-3225.72,0.00017123,2]
[351412151,1738559250869,-580.26,0.00017123,2]
[351412152,1738559250892,-500.0,0.00017123,2]
[351412153,1738559250914,-500.0,0.00017123,2]
[351412154,1738559250937,-500.0,0.00017123,2]
[351412155,1738559250960,-546.69,0.00017123,2]
[351412156,1738559250987,-1411.54,0.00017123,2]
[351412157,1738559251010,-3515.07,0.00017123,2]
[351412158,1738559251032,-500.0,0.00017123,2]
[351412159,1738559251054,-500.0,0.00017123,2]
[351412160,1738559251080,-543.35,0.00017123,2]
[351412161,1738559251104,-687.7,0.00017123,2]
[351412162,1738559251127,-500.0,0.00017123,2]
[351412163,1738559251151,-1653.91,0.00017123,2]
[351412164,1738559251174,-2170.46,0.00017123,2]
[351412165,1738559251199,-500.0,0.00017123,2]
[351412166,1738559251224,-500.0,0.00017123,2]
[351412167,1738559251248,-1612.03,0.00017123,2]
[351412168,1738559251271,-500.0,0.00017123,2]
[351412169,1738559251293,-633.83,0.00017123,2]
[351412170,1738559251315,-500.0,0.00017123,2]
[351412171,1738559251338,-854.5,0.00017123,2]
[351412172,1738559251366,-1137.16,0.00017123,2]
[351412173,1738559251389,-2705.41,0.00017123,2]
[351412174,1738559251411,-500.0,0.00017123,2]
[351412175,1738559251432,-500.0,0.00017123,2]
[351412176,1738559251454,-1365.42,0.00017123,2]
[351412177,1738559251479,-586.94,0.00017123,2]
[351412178,1738559251501,-563.74,0.00017123,2]
[351412179,1738559251524,-1812.62,0.00017123,2]
[351412180,1738559251546,-520.73,0.00017123,2]
[351412181,1738559251569,-669.38,0.00017123,2]
[351412182,1738559251592,-500.0,0.00017123,2]
[351412183,1738559251615,-500.0,0.00017123,2]
[351412184,1738559251637,-354.5475049,0.00017123,2]
[351412185,1738559251660,-354.5475049,0.00017123,2]
[351412186,1738559251681,-354.5475049,0.00017123,2]
[351412187,1738559251703,-354.5475049,0.00017123,2]
[351412188,1738559251728,-267.16677718,0.00017141,2]
[351412189,1738559251748,-267.16677718,0.00017176,2]
[351412190,1738559251770,-151.0,0.000172,2]
[351412191,1738559251791,-267.16677718,0.0001721,2]
[351412192,1738559251813,-267.16677718,0.00017245,2]
[351412193,1738559251836,-500.0,0.00017259,2]
[351412194,1738559251858,-507.65405389,0.00017259,2]
[351412195,1738559251880,-902.39,0.00017259,2]
[351412196,1738559251901,-500.0,0.00017259,2]
[351412197,1738559251923,-500.0,0.00017259,2]
[351412198,1738559251945,-204.20638549,0.00017259,2]
[351412199,1738559251971,-500.0,0.00017259,2]
[351412200,1738559251994,-500.0,0.00017259,2]
[351412201,1738559252016,-500.0,0.00017259,2]
[351412202,1738559252039,-500.0,0.00017259,2]
[351412203,1738559252062,-18037.35,0.00017259,2]